[Event "*** Titled Tuesday Blitz"]
[Site "Chess.com"]
[Date "2020.11.10"]
[Round "1"]
[White "MillyNeuf"]
[Black "Andreikka"]
[Result "0-1"]
[WhiteElo "2463"]
[BlackElo "2968"]
[TimeControl "180+1"]
[EndTime "10:06:54 PST"]
[Termination "Andreikka won by resignation"]

1. e4 {[%clk 0:02:59.6]} 1... e5 {[%clk 0:02:58.9]} 2. Nf3 {[%clk 0:02:58.4]}
2... Nc6 {[%clk 0:02:59.4]} 3. Nc3 {[%clk 0:02:58.9]} 3... Bb4 {[%clk
0:02:55.6]} 4. Nd5 {[%clk 0:02:48.4]} 4... Ba5 {[%clk 0:02:55.6]} 5. c3 {[%clk
0:02:37.7]} 5... d6 {[%clk 0:02:55.1]} 6. Bc4 {[%clk 0:02:34.5]} 6... Nf6 {[%clk
0:02:52.7]} 7. Qe2 {[%clk 0:02:33.6]} 7... O-O {[%clk 0:02:47.9]} 8. O-O {[%clk
0:02:31.7]} 8... h6 {[%clk 0:02:37.8]} 9. h3 {[%clk 0:02:31.8]} 9... Nxd5 {[%clk
0:02:32.8]} 10. exd5 {[%clk 0:02:20.7]} 10... Ne7 {[%clk 0:02:32.6]} 11. d4
{[%clk 0:02:21]} 11... exd4 {[%clk 0:02:33.5]} 12. Nxd4 {[%clk 0:02:19.8]} 12...
Ng6 {[%clk 0:02:33.1]} 13. Bd3 {[%clk 0:02:09.4]} 13... Qf6 {[%clk 0:02:31.7]}
14. Qf3 {[%clk 0:01:57.9]} 14... Qxf3 {[%clk 0:02:29.5]} 15. Nxf3 {[%clk
0:01:58]} 15... Bb6 {[%clk 0:02:28.1]} 16. Bd2 {[%clk 0:01:43.2]} 16... Bd7
{[%clk 0:02:22.1]} 17. Rfe1 {[%clk 0:01:42]} 17... a5 {[%clk 0:02:22.4]} 18.
Bxg6 {[%clk 0:01:30.6]} 18... fxg6 {[%clk 0:02:23.3]} 19. Be3 {[%clk 0:01:31.1]}
19... Ra6 {[%clk 0:02:19.2]} 20. Bd4 {[%clk 0:01:09.2]} 20... Kf7 {[%clk
0:02:11.3]} 21. Re2 {[%clk 0:01:06.4]} 21... Re8 {[%clk 0:02:11.8]} 22. Rae1
{[%clk 0:01:06.1]} 22... Rxe2 {[%clk 0:02:10.7]} 23. Rxe2 {[%clk 0:01:07]} 23...
a4 {[%clk 0:02:10.3]} 24. Bxg7 {[%clk 0:01:06.1]} 24... Bb5 {[%clk 0:02:09.7]}
25. c4 {[%clk 0:01:00.8]} 25... Bxc4 {[%clk 0:02:06.9]} 26. Rc2 {[%clk
0:00:57.4]} 26... Bxa2 {[%clk 0:01:59.6]} 27. Bd4 {[%clk 0:00:56.7]} 27... Ba5
{[%clk 0:01:48.4]} 28. Be3 {[%clk 0:00:49.5]} 28... Bxd5 {[%clk 0:01:36.7]} 29.
Bxh6 {[%clk 0:00:49.8]} 29... Bxf3 {[%clk 0:01:37.1]} 30. gxf3 {[%clk
0:00:49.4]} 30... d5 {[%clk 0:01:27.9]} 31. Bg5 {[%clk 0:00:47.5]} 31... c6
{[%clk 0:01:26.5]} 32. Re2 {[%clk 0:00:42.2]} 32... Bb4 {[%clk 0:01:25.6]} 33.
f4 {[%clk 0:00:38.1]} 33... Bf8 {[%clk 0:01:23.1]} 34. Kg2 {[%clk 0:00:37.4]}
34... Rb6 {[%clk 0:01:23.3]} 35. h4 {[%clk 0:00:35.4]} 35... Rb3 {[%clk
0:01:23]} 36. f5 {[%clk 0:00:33.1]} 36... gxf5 {[%clk 0:01:23.4]} 37. h5 {[%clk
0:00:32.4]} 37... Rb4 {[%clk 0:01:09.3]} 38. f3 {[%clk 0:00:30.1]} 38... d4
{[%clk 0:00:59.9]} 39. Re5 {[%clk 0:00:17.9]} 39... Rxb2+ {[%clk 0:00:58.1]} 40.
Kh3 {[%clk 0:00:18.5]} 40... a3 {[%clk 0:00:54.9]} 41. Rxf5+ {[%clk 0:00:18.8]}
41... Kg8 {[%clk 0:00:53.7]} 42. Ra5 {[%clk 0:00:14.4]} 42... Rb5 {[%clk
0:00:53.7]} 43. Rxb5 {[%clk 0:00:09.5]} 43... cxb5 {[%clk 0:00:54.6]} 44. Bc1
{[%clk 0:00:09.9]} 44... b4 {[%clk 0:00:54.4]} 0-1

[Event "*** Titled Tuesday Blitz"]
[Site "Chess.com"]
[Date "2020.11.10"]
[Round "1"]
[White "HanSchut"]
[Black "Bykov_Egor"]
[Result "0-1"]
[WhiteElo "2201"]
[BlackElo "2549"]
[TimeControl "180+1"]
[EndTime "10:06:54 PST"]
[Termination "Bykov_Egor won by resignation"]

1. e4 {[%clk 0:02:59.3]} 1... Nf6 {[%clk 0:02:59.5]} 2. e5 {[%clk 0:02:58.6]}
2... Nd5 {[%clk 0:02:59.3]} 3. d4 {[%clk 0:02:59.5]} 3... d6 {[%clk 0:02:58.7]}
4. c4 {[%clk 0:03:00.4]} 4... Nb6 {[%clk 0:02:58.6]} 5. exd6 {[%clk 0:03:01.3]}
5... cxd6 {[%clk 0:02:58.5]} 6. Be3 {[%clk 0:03:01.8]} 6... g6 {[%clk
0:02:57.9]} 7. Nc3 {[%clk 0:03:01.7]} 7... Bg7 {[%clk 0:02:57.8]} 8. Rc1 {[%clk
0:03:01.1]} 8... Nc6 {[%clk 0:02:57.2]} 9. b3 {[%clk 0:03:01.5]} 9... O-O {[%clk
0:02:56]} 10. Be2 {[%clk 0:03:01.6]} 10... e5 {[%clk 0:02:55.9]} 11. dxe5 {[%clk
0:02:57.8]} 11... dxe5 {[%clk 0:02:54.9]} 12. Bc5 {[%clk 0:02:58.2]} 12... Re8
{[%clk 0:02:50.1]} 13. Qxd8 {[%clk 0:02:57.1]} 13... Rxd8 {[%clk 0:02:49]} 14.
Nf3 {[%clk 0:02:51.3]} 14... Bg4 {[%clk 0:02:32]} 15. O-O {[%clk 0:02:44.5]}
15... Nd7 {[%clk 0:02:12.3]} 16. Bd6 {[%clk 0:02:28.1]} 16... Nf8 {[%clk
0:01:54.7]} 17. Rfd1 {[%clk 0:02:19.7]} 17... Ne6 {[%clk 0:01:44.2]} 18. c5
{[%clk 0:02:06.3]} 18... Nf4 {[%clk 0:01:41.6]} 19. Kf1 {[%clk 0:01:07]} 19...
Nxe2 {[%clk 0:01:30.9]} 20. Nxe2 {[%clk 0:01:06.8]} 20... e4 {[%clk 0:01:06.2]}
21. Nfg1 {[%clk 0:01:02.5]} 21... Nb4 {[%clk 0:01:02.4]} 22. h3 {[%clk
0:00:54.4]} 22... Bxe2+ {[%clk 0:00:51.7]} 23. Nxe2 {[%clk 0:00:54.5]} 23...
Nxa2 {[%clk 0:00:50.3]} 24. Rc4 {[%clk 0:00:55]} 24... e3 {[%clk 0:00:36.7]} 25.
fxe3 {[%clk 0:00:49.5]} 25... a5 {[%clk 0:00:37.3]} 26. Nd4 {[%clk 0:00:26.4]}
26... Nb4 {[%clk 0:00:25.9]} 27. Bc7 {[%clk 0:00:23.7]} 27... Rd7 {[%clk
0:00:22.7]} 28. Bxa5 {[%clk 0:00:23.3]} 28... Rxa5 {[%clk 0:00:23]} 29. Rxb4
{[%clk 0:00:23.4]} 29... Rxc5 {[%clk 0:00:23.7]} 30. Rc4 {[%clk 0:00:20.5]}
30... Re5 {[%clk 0:00:19.8]} 31. Kf2 {[%clk 0:00:20.2]} 31... f5 {[%clk
0:00:18.4]} 32. Rd3 {[%clk 0:00:19.3]} 32... Kf7 {[%clk 0:00:18.2]} 33. Nf3
{[%clk 0:00:19.4]} 33... Rxd3 {[%clk 0:00:18.1]} 34. Nxe5+ {[%clk 0:00:18.9]}
34... Bxe5 {[%clk 0:00:19]} 35. Ke2 {[%clk 0:00:17.1]} 35... Rxb3 {[%clk
0:00:18.6]} 0-1

[Event "*** Titled Tuesday Blitz"]
[Site "Chess.com"]
[Date "2020.11.10"]
[Round "1"]
[White "redbaron8888"]
[Black "yuki_chess123"]
[Result "1-0"]
[WhiteElo "2546"]
[BlackElo "2191"]
[TimeControl "180+1"]
[EndTime "10:06:55 PST"]
[Termination "redbaron8888 won by resignation"]

1. e4 {[%clk 0:03:00.9]} 1... g6 {[%clk 0:02:59.5]} 2. d4 {[%clk 0:03:00.4]}
2... Bg7 {[%clk 0:02:59.7]} 3. Nc3 {[%clk 0:03:00]} 3... c6 {[%clk 0:02:59.2]}
4. Nf3 {[%clk 0:02:58.6]} 4... d5 {[%clk 0:02:59.3]} 5. e5 {[%clk 0:02:58.2]}
5... Bg4 {[%clk 0:02:58.8]} 6. Be2 {[%clk 0:02:57.6]} 6... e6 {[%clk 0:02:58.8]}
7. O-O {[%clk 0:02:57.2]} 7... Nd7 {[%clk 0:02:58.4]} 8. h3 {[%clk 0:02:53.4]}
8... Bxf3 {[%clk 0:02:58.3]} 9. Bxf3 {[%clk 0:02:54.3]} 9... Ne7 {[%clk
0:02:57.4]} 10. Ne2 {[%clk 0:02:52.4]} 10... c5 {[%clk 0:02:57.2]} 11. c3 {[%clk
0:02:52.6]} 11... Nc6 {[%clk 0:02:57.5]} 12. Be3 {[%clk 0:02:49.8]} 12... cxd4
{[%clk 0:02:57]} 13. cxd4 {[%clk 0:02:49.2]} 13... O-O {[%clk 0:02:55]} 14. Qd2
{[%clk 0:02:48.6]} 14... Qb6 {[%clk 0:02:54.4]} 15. Rfd1 {[%clk 0:02:40.1]}
15... f6 {[%clk 0:02:50.2]} 16. Nf4 {[%clk 0:02:19.7]} 16... Rae8 {[%clk
0:02:49.3]} 17. Rac1 {[%clk 0:02:07.4]} 17... Kh8 {[%clk 0:02:28.2]} 18. exf6
{[%clk 0:02:05.9]} 18... Nxf6 {[%clk 0:02:27.3]} 19. Kh1 {[%clk 0:02:00.6]}
19... Ne7 {[%clk 0:02:26.5]} 20. Nd3 {[%clk 0:01:55.5]} 20... Nf5 {[%clk
0:02:25.6]} 21. Ne5 {[%clk 0:01:55]} 21... Rc8 {[%clk 0:02:04.5]} 22. b3 {[%clk
0:01:49.7]} 22... Ne4 {[%clk 0:01:50.6]} 23. Bxe4 {[%clk 0:01:46.6]} 23... dxe4
{[%clk 0:01:50.8]} 24. Nd7 {[%clk 0:01:45.2]} 24... Qd6 {[%clk 0:01:29.2]} 25.
Nxf8 {[%clk 0:01:44.8]} 25... Rxf8 {[%clk 0:01:28.9]} 26. d5 {[%clk 0:01:43.4]}
26... e5 {[%clk 0:01:24.3]} 27. Bc5 {[%clk 0:01:42.2]} 27... e3 {[%clk 0:01:20]}
28. fxe3 {[%clk 0:01:39.3]} 28... Qf6 {[%clk 0:01:19.2]} 29. Bxf8 {[%clk
0:01:37.6]} 29... Bxf8 {[%clk 0:01:17.2]} 30. Rc8 {[%clk 0:01:29.8]} 30... Kg7
{[%clk 0:01:16.1]} 31. Rc7+ {[%clk 0:01:27.5]} 31... Kg8 {[%clk 0:01:12.6]} 32.
d6 {[%clk 0:01:26.9]} 32... Bxd6 {[%clk 0:01:11.8]} 33. Qd5+ {[%clk 0:01:26.3]}
33... Kh8 {[%clk 0:01:10.1]} 34. Rc8+ {[%clk 0:01:21.1]} 34... Kg7 {[%clk
0:01:10]} 35. Qg8+ {[%clk 0:01:14.2]} 35... Kh6 {[%clk 0:01:09.4]} 36. Rxd6
{[%clk 0:01:06.7]} 36... Qxd6 {[%clk 0:01:01.6]} 37. Qf8+ {[%clk 0:01:05.5]}
37... Qxf8 {[%clk 0:01:01.6]} 38. Rxf8 {[%clk 0:01:06.4]} 38... Nxe3 {[%clk
0:01:01.7]} 39. Rf7 {[%clk 0:01:04.2]} 39... Nf5 {[%clk 0:00:52.5]} 40. Rxb7
{[%clk 0:01:01.9]} 40... e4 {[%clk 0:00:52.6]} 41. g4 {[%clk 0:01:00.2]} 41...
Nd4 {[%clk 0:00:41.9]} 42. Re7 {[%clk 0:00:56.8]} 42... Ne2 {[%clk 0:00:41.9]}
43. Kg2 {[%clk 0:00:55.5]} 43... Nc3 {[%clk 0:00:41.8]} 44. Kf1 {[%clk
0:00:53.1]} 44... Kg5 {[%clk 0:00:40.6]} 45. Rxh7 {[%clk 0:00:52]} 45... Kf4
{[%clk 0:00:40.6]} 46. Rxa7 {[%clk 0:00:51.2]} 46... e3 {[%clk 0:00:39.4]} 47.
Re7 {[%clk 0:00:47.1]} 47... Ne4 {[%clk 0:00:39.4]} 48. Rxe4+ {[%clk 0:00:42.5]}
48... Kxe4 {[%clk 0:00:39.2]} 49. h4 {[%clk 0:00:37.5]} 49... Kf3 {[%clk
0:00:37.7]} 50. h5 {[%clk 0:00:36.3]} 1-0

[Event "*** Titled Tuesday Blitz"]
[Site "Chess.com"]
[Date "2020.11.10"]
[Round "1"]
[White "Flutaga"]
[Black "capatl"]
[Result "0-1"]
[WhiteElo "1993"]
[BlackElo "2499"]
[TimeControl "180+1"]
[EndTime "10:06:55 PST"]
[Termination "capatl won by resignation"]

1. e4 {[%clk 0:02:59.7]} 1... c5 {[%clk 0:02:58.6]} 2. Nc3 {[%clk 0:02:59.6]}
2... e6 {[%clk 0:02:57.6]} 3. f4 {[%clk 0:03:00]} 3... a6 {[%clk 0:02:57.4]} 4.
Nf3 {[%clk 0:03:00.2]} 4... b5 {[%clk 0:02:56.8]} 5. d4 {[%clk 0:03:00]} 5...
cxd4 {[%clk 0:02:56.4]} 6. Qxd4 {[%clk 0:03:00.9]} 6... Bb7 {[%clk 0:02:56.8]}
7. Bd3 {[%clk 0:03:00.4]} 7... Nc6 {[%clk 0:02:52.6]} 8. Qf2 {[%clk 0:03:00]}
8... Nb4 {[%clk 0:02:51.6]} 9. Be3 {[%clk 0:02:58.7]} 9... Nf6 {[%clk
0:02:39.8]} 10. h3 {[%clk 0:02:53.8]} 10... d5 {[%clk 0:02:35]} 11. e5 {[%clk
0:02:40.5]} 11... Nd7 {[%clk 0:02:24.4]} 12. O-O {[%clk 0:02:34.3]} 12... g6
{[%clk 0:02:24.3]} 13. Rac1 {[%clk 0:01:55]} 13... Rc8 {[%clk 0:02:23.3]} 14. a3
{[%clk 0:01:44.7]} 14... Nc6 {[%clk 0:02:22.4]} 15. Ne2 {[%clk 0:01:39.8]} 15...
Na5 {[%clk 0:02:22.2]} 16. b3 {[%clk 0:01:33.1]} 16... Bxa3 {[%clk 0:02:20.1]}
17. Ra1 {[%clk 0:01:29.9]} 17... Be7 {[%clk 0:02:20]} 18. Ned4 {[%clk
0:01:25.6]} 18... Nc6 {[%clk 0:02:18.9]} 19. Qg3 {[%clk 0:01:15.9]} 19... Nxd4
{[%clk 0:02:16.3]} 20. Bxd4 {[%clk 0:01:13]} 20... Nc5 {[%clk 0:02:08.8]} 21. f5
{[%clk 0:01:05.7]} 21... exf5 {[%clk 0:01:56.5]} 22. e6 {[%clk 0:00:59.5]} 22...
f6 {[%clk 0:01:34.1]} 23. Rae1 {[%clk 0:00:42.3]} 23... Ne4 {[%clk 0:01:27.1]}
24. Qh4 {[%clk 0:00:34.7]} 24... O-O {[%clk 0:01:26.2]} 25. Qh6 {[%clk
0:00:30.3]} 25... Rc6 {[%clk 0:01:16.1]} 26. Rd1 {[%clk 0:00:15.9]} 26... Bc5
{[%clk 0:00:39.7]} 27. Bxc5 {[%clk 0:00:03.2]} 27... Nxc5 {[%clk 0:00:39.8]} 28.
h4 {[%clk 0:00:01.7]} 28... Nxe6 {[%clk 0:00:35.6]} 29. h5 {[%clk 0:00:01.2]}
29... Qe8 {[%clk 0:00:29.6]} 30. hxg6 {[%clk 0:00:01.3]} 30... Qxg6 {[%clk
0:00:30.2]} 31. Qxg6+ {[%clk 0:00:01.8]} 31... hxg6 {[%clk 0:00:31.1]} 32. Rfe1
{[%clk 0:00:02]} 32... Bc8 {[%clk 0:00:30.7]} 33. Rxe6 {[%clk 0:00:01.3]} 33...
Bxe6 {[%clk 0:00:30.4]} 34. Nd4 {[%clk 0:00:02.2]} 34... Rd6 {[%clk 0:00:30.7]}
35. Nc6 {[%clk 0:00:02.8]} 35... Rxc6 {[%clk 0:00:30.7]} 0-1

[Event "*** Titled Tuesday Blitz"]
[Site "Chess.com"]
[Date "2020.11.10"]
[Round "1"]
[White "RobPeresian"]
[Black "swimmerchess"]
[Result "1-0"]
[WhiteElo "2445"]
[BlackElo "2840"]
[TimeControl "180+1"]
[EndTime "10:06:56 PST"]
[Termination "RobPeresian won on time"]

1. Nf3 {[%clk 0:02:57.6]} 1... Nf6 {[%clk 0:02:59.4]} 2. c4 {[%clk 0:02:46.3]}
2... c5 {[%clk 0:02:56.1]} 3. Nc3 {[%clk 0:02:44.8]} 3... d5 {[%clk 0:02:56]} 4.
cxd5 {[%clk 0:02:41]} 4... Nxd5 {[%clk 0:02:56.9]} 5. Nxd5 {[%clk 0:02:40.8]}
5... Qxd5 {[%clk 0:02:56.2]} 6. d3 {[%clk 0:02:41]} 6... Nc6 {[%clk 0:02:54.2]}
7. g3 {[%clk 0:02:40.8]} 7... Bg4 {[%clk 0:02:50]} 8. Bg2 {[%clk 0:02:40.6]}
8... e6 {[%clk 0:02:47.6]} 9. O-O {[%clk 0:02:40.3]} 9... Be7 {[%clk 0:02:45.4]}
10. Be3 {[%clk 0:02:38.6]} 10... O-O {[%clk 0:02:42.4]} 11. a3 {[%clk
0:02:34.4]} 11... Qh5 {[%clk 0:02:41]} 12. Rc1 {[%clk 0:02:25]} 12... Rfd8
{[%clk 0:02:38.3]} 13. Qa4 {[%clk 0:02:18.5]} 13... Rac8 {[%clk 0:02:35]} 14. b4
{[%clk 0:02:11.3]} 14... cxb4 {[%clk 0:02:16.3]} 15. axb4 {[%clk 0:02:11.1]}
15... Nxb4 {[%clk 0:02:16]} 16. Qxa7 {[%clk 0:02:07.4]} 16... Rxc1 {[%clk
0:02:01.9]} 17. Rxc1 {[%clk 0:02:06.4]} 17... Nxd3 {[%clk 0:01:59.1]} 18. Rd1
{[%clk 0:01:59.2]} 18... h6 {[%clk 0:01:16.7]} 19. Qxb7 {[%clk 0:01:57.9]} 19...
Ne5 {[%clk 0:00:25.2]} 20. Rxd8+ {[%clk 0:01:55.8]} 20... Bxd8 {[%clk
0:00:26.1]} 21. Qb8 {[%clk 0:01:52.1]} 21... Bxf3 {[%clk 0:00:25.8]} 22. Qxd8+
{[%clk 0:01:50.2]} 22... Kh7 {[%clk 0:00:25.6]} 23. exf3 {[%clk 0:01:50.5]}
23... Nxf3+ {[%clk 0:00:26.3]} 24. Bxf3 {[%clk 0:01:48.6]} 24... Qxf3 {[%clk
0:00:27.2]} 25. Qd3+ {[%clk 0:01:49]} 25... f5 {[%clk 0:00:26.2]} 26. Qf1 {[%clk
0:01:48.4]} 26... g5 {[%clk 0:00:26]} 27. h3 {[%clk 0:01:47.4]} 27... Kg6 {[%clk
0:00:26.1]} 28. Qg2 {[%clk 0:01:46.8]} 28... Qd1+ {[%clk 0:00:26.1]} 29. Kh2
{[%clk 0:01:47.1]} 29... h5 {[%clk 0:00:26.6]} 30. Qc6 {[%clk 0:01:42.6]} 30...
Kf6 {[%clk 0:00:23.6]} 31. Qe8 {[%clk 0:01:40.5]} 31... Qf3 {[%clk 0:00:14.6]}
32. Qh8+ {[%clk 0:01:38]} 32... Kf7 {[%clk 0:00:14]} 33. Qh7+ {[%clk 0:01:37.2]}
33... Kf8 {[%clk 0:00:12.5]} 34. Qh6+ {[%clk 0:01:36.7]} 34... Kf7 {[%clk
0:00:12.6]} 35. Qxg5 {[%clk 0:01:37]} 35... e5 {[%clk 0:00:11.6]} 36. Qh6 {[%clk
0:01:30.2]} 36... Ke7 {[%clk 0:00:06.2]} 37. Qg7+ {[%clk 0:01:27.6]} 37... Ke6
{[%clk 0:00:03.6]} 38. Qg8+ {[%clk 0:01:27.6]} 38... Kd6 {[%clk 0:00:03.1]} 39.
Qf8+ {[%clk 0:01:25.2]} 39... Ke6 {[%clk 0:00:02.6]} 40. Qc8+ {[%clk 0:01:24.9]}
40... Kf6 {[%clk 0:00:02.8]} 41. Qf8+ {[%clk 0:01:21.1]} 41... Ke6 {[%clk
0:00:03.2]} 42. h4 {[%clk 0:01:19]} 42... Kd5 {[%clk 0:00:03]} 43. Qf7+ {[%clk
0:01:17.2]} 43... Kc6 {[%clk 0:00:01.6]} 44. Qg6+ {[%clk 0:01:16.9]} 44... Kd5
{[%clk 0:00:02]} 45. Qg5 {[%clk 0:01:16.3]} 45... Ke4 {[%clk 0:00:02.3]} 46. Qd8
{[%clk 0:01:13.6]} 46... f4 {[%clk 0:00:02.1]} 47. Qa8+ {[%clk 0:01:13.5]} 47...
Kf5 {[%clk 0:00:02.3]} 48. Qxf3 {[%clk 0:01:13.4]} 1-0

[Event "*** Titled Tuesday Blitz"]
[Site "Chess.com"]
[Date "2020.11.10"]
[Round "1"]
[White "Beltraxtor"]
[Black "MVM2008"]
[Result "1-0"]
[WhiteElo "2540"]
[BlackElo "2182"]
[TimeControl "180+1"]
[EndTime "10:06:56 PST"]
[Termination "Beltraxtor won by resignation"]

1. e4 {[%clk 0:03:00.9]} 1... c5 {[%clk 0:02:56.9]} 2. Nf3 {[%clk 0:02:59.6]}
2... d6 {[%clk 0:02:52.8]} 3. Bb5+ {[%clk 0:02:58.5]} 3... Bd7 {[%clk
0:02:52.5]} 4. Bxd7+ {[%clk 0:02:57.8]} 4... Qxd7 {[%clk 0:02:53.4]} 5. c4
{[%clk 0:02:58.2]} 5... g6 {[%clk 0:02:52.7]} 6. Nc3 {[%clk 0:02:55.3]} 6... Bg7
{[%clk 0:02:52]} 7. d4 {[%clk 0:02:56]} 7... cxd4 {[%clk 0:02:52.2]} 8. Nxd4
{[%clk 0:02:56.9]} 8... Nc6 {[%clk 0:02:52.4]} 9. Be3 {[%clk 0:02:56.6]} 9...
Nf6 {[%clk 0:02:52.3]} 10. h3 {[%clk 0:02:56.5]} 10... O-O {[%clk 0:02:52.5]}
11. O-O {[%clk 0:02:53.1]} 11... Rac8 {[%clk 0:02:45.6]} 12. Rc1 {[%clk
0:02:48.6]} 12... Nxd4 {[%clk 0:02:44.9]} 13. Qxd4 {[%clk 0:02:27.4]} 13... Ng4
{[%clk 0:02:43.7]} 14. Qxa7 {[%clk 0:02:26.1]} 14... Nxe3 {[%clk 0:02:43.4]} 15.
Qxe3 {[%clk 0:02:22.7]} 15... Rxc4 {[%clk 0:02:42.9]} 16. b3 {[%clk 0:02:22.8]}
16... Rxc3 {[%clk 0:02:18.9]} 17. Rxc3 {[%clk 0:02:23.7]} 17... Bxc3 {[%clk
0:02:19.3]} 18. Qxc3 {[%clk 0:02:24.5]} 18... Rc8 {[%clk 0:02:19.4]} 19. Qd3
{[%clk 0:02:15.3]} 19... Qc6 {[%clk 0:02:18.6]} 20. a4 {[%clk 0:02:10]} 20...
Qc2 {[%clk 0:02:17.9]} 21. Qb5 {[%clk 0:02:05.2]} 21... Qxe4 {[%clk 0:02:15]}
22. a5 {[%clk 0:01:46.4]} 22... Qc6 {[%clk 0:02:03.7]} 23. Qe2 {[%clk
0:01:38.9]} 23... Qc7 {[%clk 0:01:57.3]} 24. b4 {[%clk 0:01:37.4]} 24... e6
{[%clk 0:01:56.5]} 25. g3 {[%clk 0:01:29.7]} 25... d5 {[%clk 0:01:56.4]} 26. Qe3
{[%clk 0:01:27.5]} 26... Qc3 {[%clk 0:01:52.5]} 27. Qb6 {[%clk 0:01:26.3]} 27...
Qc6 {[%clk 0:01:49.3]} 28. Qd4 {[%clk 0:01:23.8]} 28... Qb5 {[%clk 0:01:48.3]}
29. Rb1 {[%clk 0:01:15.3]} 29... Qc4 {[%clk 0:01:29.7]} 30. Qb6 {[%clk
0:01:11.1]} 30... Qc7 {[%clk 0:01:19.2]} 31. Qa7 {[%clk 0:01:02.8]} 31... Qb8
{[%clk 0:01:11.4]} 32. Qe3 {[%clk 0:00:59.8]} 32... Rc4 {[%clk 0:01:05.4]} 33.
b5 {[%clk 0:00:58.5]} 33... Qc7 {[%clk 0:00:58.7]} 34. b6 {[%clk 0:00:52.3]}
34... Qc8 {[%clk 0:00:40]} 35. a6 {[%clk 0:00:52]} 35... bxa6 {[%clk 0:00:36.1]}
36. b7 {[%clk 0:00:51.7]} 36... Qb8 {[%clk 0:00:35.5]} 37. Qb6 {[%clk
0:00:52.2]} 37... Rc2 {[%clk 0:00:17.1]} 38. Qxa6 {[%clk 0:00:48.3]} 38... Rxf2
{[%clk 0:00:01.8]} 39. Qa8 {[%clk 0:00:45.7]} 39... Kg7 {[%clk 0:00:02.4]} 40.
Qxb8 {[%clk 0:00:45.8]} 1-0

[Event "*** Titled Tuesday Blitz"]
[Site "Chess.com"]
[Date "2020.11.10"]
[Round "1"]
[White "romulocardoso"]
[Black "FontVella8"]
[Result "0-1"]
[WhiteElo "2057"]
[BlackElo "2506"]
[TimeControl "180+1"]
[EndTime "10:06:58 PST"]
[Termination "FontVella8 won by resignation"]

1. e4 {[%clk 0:03:00.9]} 1... e5 {[%clk 0:02:59.6]} 2. Nf3 {[%clk 0:03:01]} 2...
Nc6 {[%clk 0:02:56.1]} 3. d4 {[%clk 0:03:01.1]} 3... exd4 {[%clk 0:02:55.6]} 4.
Bc4 {[%clk 0:03:01]} 4... Bb4+ {[%clk 0:02:52.8]} 5. c3 {[%clk 0:03:00.4]} 5...
dxc3 {[%clk 0:02:52.7]} 6. O-O {[%clk 0:03:00.2]} 6... Nf6 {[%clk 0:02:47.5]} 7.
e5 {[%clk 0:02:57.5]} 7... d5 {[%clk 0:02:41.2]} 8. exf6 {[%clk 0:02:54.1]} 8...
dxc4 {[%clk 0:02:41.5]} 9. fxg7 {[%clk 0:02:52.2]} 9... Rg8 {[%clk 0:02:40.2]}
10. bxc3 {[%clk 0:02:34.3]} 10... Bc5 {[%clk 0:02:32.5]} 11. Qxd8+ {[%clk
0:02:27]} 11... Nxd8 {[%clk 0:02:32]} 12. Bh6 {[%clk 0:02:26.5]} 12... Bf5
{[%clk 0:02:22.4]} 13. Re1+ {[%clk 0:02:24.9]} 13... Ne6 {[%clk 0:02:22.6]} 14.
Re5 {[%clk 0:02:04]} 14... O-O-O {[%clk 0:02:07.5]} 15. Nbd2 {[%clk 0:01:58.2]}
15... Bd3 {[%clk 0:02:02.3]} 16. Ng5 {[%clk 0:01:50.1]} 16... Bd6 {[%clk
0:01:38.5]} 17. Ree1 {[%clk 0:01:40.3]} 17... Nxg5 {[%clk 0:00:32.8]} 18. Bxg5
{[%clk 0:01:41.2]} 18... Rd7 {[%clk 0:00:30.1]} 19. Bf6 {[%clk 0:01:38.2]} 19...
Bf4 {[%clk 0:00:30]} 20. Nf3 {[%clk 0:01:35.4]} 20... Rd6 {[%clk 0:00:26.6]} 21.
Bd4 {[%clk 0:01:27.6]} 21... f6 {[%clk 0:00:25]} 22. Bc5 {[%clk 0:01:10.8]}
22... Rxg7 {[%clk 0:00:13.5]} 23. Bxd6 {[%clk 0:01:09.2]} 23... cxd6 {[%clk
0:00:14.4]} 24. Nd4 {[%clk 0:01:05.3]} 24... Be5 {[%clk 0:00:11.9]} 25. Rac1
{[%clk 0:01:02]} 25... Kd7 {[%clk 0:00:11.2]} 26. g3 {[%clk 0:00:58.6]} 26... d5
{[%clk 0:00:10.7]} 27. f4 {[%clk 0:00:57.1]} 27... Bd6 {[%clk 0:00:08]} 28. Nf5
{[%clk 0:00:56.6]} 28... Bxf5 {[%clk 0:00:07.5]} 29. Rcd1 {[%clk 0:00:55]} 29...
Be4 {[%clk 0:00:07.1]} 30. Kf2 {[%clk 0:00:54.5]} 30... f5 {[%clk 0:00:07.5]}
31. Re3 {[%clk 0:00:54.4]} 31... Bc5 {[%clk 0:00:07.8]} 32. Rd4 {[%clk
0:00:54.1]} 32... Bxd4 {[%clk 0:00:08.2]} 33. cxd4 {[%clk 0:00:55]} 33... Kc6
{[%clk 0:00:08.9]} 34. Ra3 {[%clk 0:00:54.2]} 34... a6 {[%clk 0:00:08.1]} 35.
Ra5 {[%clk 0:00:51.6]} 35... Rg6 {[%clk 0:00:07.6]} 36. a4 {[%clk 0:00:49.8]}
36... Kb6 {[%clk 0:00:07.5]} 37. Rc5 {[%clk 0:00:49.4]} 37... Rc6 {[%clk
0:00:08]} 38. a5+ {[%clk 0:00:49.1]} 38... Kc7 {[%clk 0:00:08.1]} 39. Rxd5
{[%clk 0:00:43.3]} 39... Bxd5 {[%clk 0:00:07.8]} 40. g4 {[%clk 0:00:43.4]} 40...
c3 {[%clk 0:00:08.1]} 41. h4 {[%clk 0:00:44.2]} 41... c2 {[%clk 0:00:08.6]} 42.
g5 {[%clk 0:00:45.1]} 42... c1=Q {[%clk 0:00:08.9]} 43. h5 {[%clk 0:00:46]}
43... Qd2+ {[%clk 0:00:08.3]} 0-1